Organisation Name,Department where exp. Incurred,Service Category Label,Supplier (Beneficiary),Purpose of Expenditure,Procurement (Merchant) Category,Purchase Date,Settlement Date,Transaction Number,Net Amount (�)
Stockport MBC,Corporate and Support Services,Central Support Costs,WWW.CONTENTFUL.COM,Information and Communications Technology,Information Communication Technology  ,01.06.2021,16.06.2021,GPC05210000001,8.69
Stockport MBC,Corporate and Support Services,Central Support Costs,FASTHOSTS INTERNET,Information and Communications Technology,Information Communication Technology  ,31.05.2021,16.06.2021,GPC05210000002,92.40
Stockport MBC,Corporate and Support Services,Central Support Costs,MIRO.COM,Information and Communications Technology,Information Communication Technology  ,24.05.2021,16.06.2021,GPC05210000003,128.49
Stockport MBC,Corporate and Support Services,Central Support Costs,FASTHOSTS INTERNET,Information and Communications Technology,Information Communication Technology  ,17.05.2021,16.06.2021,GPC05210000004,25.07
Stockport MBC,Corporate and Support Services,Central Support Costs,GITHUB,Information and Communications Technology,Information Communication Technology  ,14.05.2021,16.06.2021,GPC05210000005,73.51
Stockport MBC,Corporate and Support Services,Central Support Costs,AWS EMEA,Information and Communications Technology,Information Communication Technology  ,16.05.2021,16.06.2021,GPC05210000006,9.46
Stockport MBC,Corporate and Support Services,Central Support Costs,FASTHOSTS INTERNET,Information and Communications Technology,Information Communication Technology  ,15.05.2021,16.06.2021,GPC05210000007,25.18
Stockport MBC,Corporate and Support Services,Central Support Costs,AUTH0.COM,Information and Communications Technology,Information Communication Technology  ,13.05.2021,16.06.2021,GPC05210000008,8.78
Stockport MBC,Corporate and Support Services,Central Support Costs,ATLASSIAN,Information and Communications Technology,Information Communication Technology  ,08.05.2021,16.06.2021,GPC05210000009,986.32
Stockport MBC,Corporate and Support Services,Central Support Costs,WWW.CONTENTFUL.COM,Information and Communications Technology,Information Communication Technology  ,09.05.2021,16.06.2021,GPC05210000010,705.58
Stockport MBC,Corporate and Support Services,Central Support Costs,EASILY LTD,Information and Communications Technology,Information Communication Technology  ,05.05.2021,16.06.2021,GPC05210000011,7.50
Stockport MBC,Corporate and Support Services,Central Support Costs,AUTH0.COM,Information and Communications Technology,Information Communication Technology  ,05.05.2021,16.06.2021,GPC05210000012,148.80
Stockport MBC,Corporate and Support Services,Central Support Costs,AWS EMEA,Information and Communications Technology,Information Communication Technology  ,03.05.2021,16.06.2021,GPC05210000013,"1,078.14"
Stockport MBC,Services to People,Childrens & Educational Services,WM MORRISONS STORE,Furniture and Equipment,Furniture & Soft Furnishings  ,24.05.2021,16.06.2021,GPC05210000014,7.00
Stockport MBC,Services to People,Childrens & Educational Services,EB  COGNITIVE LOAD IN,Staff Training,Human Resources  ,17.05.2021,16.06.2021,GPC05210000015,30.00
Stockport MBC,Services to People,Childrens & Educational Services,WM MORRISONS STORE,Furniture and Equipment,Furniture & Soft Furnishings  ,13.05.2021,16.06.2021,GPC05210000016,7.80
Stockport MBC,Services to People,Childrens & Educational Services,WM MORRISONS STORE,Furniture and Equipment,Furniture & Soft Furnishings  ,07.05.2021,16.06.2021,GPC05210000017,10.00
Stockport MBC,Corporate and Support Services,Central Services to the public,BREAD AND BUTTIES HEAV,Expenses and Allowances,Catering  ,12.05.2021,16.06.2021,GPC05210000018,46.80
Stockport MBC,Corporate and Support Services,Central Services to the public,AMZNMKTPLACE,Office Expenses,Stationery    ,11.05.2021,16.06.2021,GPC05210000019,14.46
Stockport MBC,Corporate and Support Services,Central Services to the public,BREAD AND BUTTIES HEAV,Expenses and Allowances,Catering  ,10.05.2021,16.06.2021,GPC05210000020,49.30
Stockport MBC,Corporate and Support Services,Central Services to the public,BREAD AND BUTTIES HEAV,Expenses and Allowances,Catering  ,07.05.2021,16.06.2021,GPC05210000021,36.70
Stockport MBC,Corporate and Support Services,Central Services to the public,AMZNMKTPLACE,Furniture and Equipment,Furniture & Soft Furnishings  ,06.05.2021,16.06.2021,GPC05210000022,131.88
Stockport MBC,Corporate and Support Services,Central Services to the public,BREAD AND BUTTIES HEAV,Expenses and Allowances,Catering  ,06.05.2021,16.06.2021,GPC05210000023,32.90
Stockport MBC,Corporate and Support Services,Central Services to the public,BREAD AND BUTTIES HEAV,Expenses and Allowances,Catering  ,05.05.2021,16.06.2021,GPC05210000024,37.10
Stockport MBC,Corporate and Support Services,Central Services to the public,BREAD AND BUTTIES HEAV,Expenses and Allowances,Catering  ,04.05.2021,16.06.2021,GPC05210000025,41.20
Stockport MBC,Corporate and Support Services,Central Services to the public,TESCO STORES 3378,Expenses and Allowances,Catering  ,01.05.2021,16.06.2021,GPC05210000026,12.70
Stockport MBC,Corporate and Support Services,Central Support Costs,FACEBK  WG6EE5BMG2,Office Expenses,Facilities & Management Services  ,31.05.2021,16.06.2021,GPC05210000027,45.51
Stockport MBC,Corporate and Support Services,Central Support Costs,FACEBK  3F7JR53MG2,Office Expenses,Facilities & Management Services  ,28.05.2021,16.06.2021,GPC05210000028,700.00
Stockport MBC,Corporate and Support Services,Central Support Costs,APPLE.COM/BILL,Information and Communications Technology,Information Communication Technology  ,26.05.2021,16.06.2021,GPC05210000029,5.83
Stockport MBC,Corporate and Support Services,Central Support Costs,LINKEDIN-643 4307913,Office Expenses,Facilities & Management Services  ,23.05.2021,16.06.2021,GPC05210000030,16.81
Stockport MBC,Corporate and Support Services,Central Support Costs,LINKEDIN-643 2761793,Office Expenses,Facilities & Management Services  ,22.05.2021,16.06.2021,GPC05210000031,204.04
Stockport MBC,Corporate and Support Services,Central Support Costs,SITEGROUND HOSTING,Information and Communications Technology,Information Communication Technology  ,18.05.2021,16.06.2021,GPC05210000032,14.95
Stockport MBC,Corporate and Support Services,Central Support Costs,LINKEDIN-641 3783143,Office Expenses,Facilities & Management Services  ,17.05.2021,16.06.2021,GPC05210000033,49.97
Stockport MBC,Corporate and Support Services,Central Support Costs,LINKEDIN IRELAND,Office Expenses,Facilities & Management Services  ,11.05.2021,16.06.2021,GPC05210000034,79.38
Stockport MBC,Corporate and Support Services,Central Support Costs,LINKEDIN-638 0261473,Office Expenses,Facilities & Management Services  ,05.05.2021,16.06.2021,GPC05210000035,24.45
Stockport MBC,Corporate and Support Services,Central Support Costs,FACEBK  R67JB3KMG2,Office Expenses,Facilities & Management Services  ,30.04.2021,16.06.2021,GPC05210000036,369.03
Stockport MBC,Services to People,Childrens & Educational Services,ASDA STORES 4840,Catering Supplies,Catering Food & Beverages ,27.05.2021,16.06.2021,GPC05210000037,8.28
Stockport MBC,Services to People,Childrens & Educational Services,ASDA STORES 4840,Catering Supplies,Catering Food & Beverages ,26.05.2021,16.06.2021,GPC05210000038,5.59
Stockport MBC,Services to People,Childrens & Educational Services,ASDA STORES 4840,Catering Supplies,Catering Food & Beverages ,25.05.2021,16.06.2021,GPC05210000039,4.09
Stockport MBC,Services to People,Childrens & Educational Services,ASDA STORES 4840,Catering Supplies,Catering Food & Beverages ,24.05.2021,16.06.2021,GPC05210000040,9.07
Stockport MBC,Services to People,Childrens & Educational Services,ASDA STORES 4840,Catering Supplies,Catering Food & Beverages ,21.05.2021,16.06.2021,GPC05210000041,11.91
Stockport MBC,Services to People,Childrens & Educational Services,ASDA STORES 4840,Catering Supplies,Catering Food & Beverages ,20.05.2021,16.06.2021,GPC05210000042,1.60
Stockport MBC,Services to People,Childrens & Educational Services,ASDA STORES 4840,Catering Supplies,Catering Food & Beverages ,19.05.2021,16.06.2021,GPC05210000043,2.59
Stockport MBC,Services to People,Childrens & Educational Services,ASDA STORES 4840,Catering Supplies,Catering Food & Beverages ,18.05.2021,16.06.2021,GPC05210000044,4.96
Stockport MBC,Services to People,Childrens & Educational Services,ASDA STORES 4840,Catering Supplies,Catering Food & Beverages ,17.05.2021,16.06.2021,GPC05210000045,18.86
Stockport MBC,Services to People,Childrens & Educational Services,ASDA STORES 4840,Catering Supplies,Catering Food & Beverages ,13.05.2021,16.06.2021,GPC05210000046,4.09
Stockport MBC,Services to People,Childrens & Educational Services,ASDA STORES 4840,Catering Supplies,Catering Food & Beverages ,12.05.2021,16.06.2021,GPC05210000047,6.96
Stockport MBC,Services to People,Childrens & Educational Services,ASDA STORES 4840,Catering Supplies,Catering Food & Beverages ,11.05.2021,16.06.2021,GPC05210000048,8.66
Stockport MBC,Services to People,Childrens & Educational Services,ASDA STORES 4840,Catering Supplies,Catering Food & Beverages ,10.05.2021,16.06.2021,GPC05210000049,10.90
Stockport MBC,Services to People,Childrens & Educational Services,ASDA STORES 4840,Catering Supplies,Catering Food & Beverages ,07.05.2021,16.06.2021,GPC05210000050,12.18
Stockport MBC,Services to People,Childrens & Educational Services,ASDA STORES 4840,Catering Supplies,Catering Food & Beverages ,08.05.2021,16.06.2021,GPC05210000051,2.85
Stockport MBC,Services to People,Childrens & Educational Services,ASDA STORES 4840,Catering Supplies,Catering Food & Beverages ,04.05.2021,16.06.2021,GPC05210000052,23.95
Stockport MBC,Corporate and Support Services,Central Services to the public,HOLIDAY INNS,Expenses and Allowances,Human Resources Travel & Subsistence ,07.05.2021,16.06.2021,GPC05210000053,44.10
Stockport MBC,Corporate and Support Services,Central Services to the public,BRITANNIA HOTEL,Furniture and Equipment,Environmental Services Technical Equipment ,05.05.2021,16.06.2021,GPC05210000054,200.00
Stockport MBC,Services to People,Childrens & Educational Services,WWW.ROLI.COM,Furniture and Equipment,Environmental Services Technical Equipment ,06.05.2021,16.06.2021,GPC05210000055,490.00
Stockport MBC,Services to People,Childrens & Educational Services,AMAZON.CO.UK 2T9XG7CT4,Library Equipment,Education Library Books ,19.05.2021,16.06.2021,GPC05210000056,11.99
Stockport MBC,Services to People,Childrens & Educational Services,CVAA UK LTD,Staff Training,Human Resources  ,19.05.2021,16.06.2021,GPC05210000057,45.00
Stockport MBC,Services to People,Childrens & Educational Services,AMAZON.CO.UK MK06Q3YB4,Library Equipment,Education Library Books ,18.05.2021,16.06.2021,GPC05210000058,11.99
Stockport MBC,Services to People,Childrens & Educational Services,AMAZON.CO.UK MK7OM6YP4,Library Equipment,Education Library Books ,19.05.2021,16.06.2021,GPC05210000059,11.99
Stockport MBC,Services to People,Childrens & Educational Services,AMAZON.CO.UK MK2DB5YK4,Library Equipment,Education Library Books ,19.05.2021,16.06.2021,GPC05210000060,11.99
Stockport MBC,Services to People,Childrens & Educational Services,AMAZON.CO.UK MK4ZO8Y14,Library Equipment,Education Library Books ,18.05.2021,16.06.2021,GPC05210000061,11.99
Stockport MBC,Services to People,Childrens & Educational Services,CVAA UK LTD,Staff Training,Human Resources  ,04.05.2021,16.06.2021,GPC05210000062,90.00
Stockport MBC,Services to People,Childrens & Educational Services,GOOGLE  ADS8179771860,Office Expenses,Facilities & Management Services  ,03.05.2021,16.06.2021,GPC05210000063,163.16
Stockport MBC,Services to People,Childrens & Educational Services,STOCKPORT MBC DOM,Fees and Charges,"Works - Construction, Repair & Maintenance  ",18.05.2021,16.06.2021,GPC05210000064,10.00
Stockport MBC,Services to People,Childrens & Educational Services,AMZNMKTPLACE,Furniture and Equipment,Furniture & Soft Furnishings  ,16.05.2021,16.06.2021,GPC05210000065,56.98
Stockport MBC,Services to People,Childrens & Educational Services,AMAZON PRIME MK4CB1264,Furniture and Equipment,Furniture & Soft Furnishings  ,13.05.2021,16.06.2021,GPC05210000066,7.99
Stockport MBC,Services to People,Childrens & Educational Services,AMAZON.CO.UK MK78H2VB4,Office Expenses,Stationery    ,07.05.2021,16.06.2021,GPC05210000067,6.66
Stockport MBC,Services to People,Childrens & Educational Services,WM MORRISONS STORE,Furniture and Equipment,Environmental Services Technical Equipment ,28.05.2021,16.06.2021,GPC05210000068,4.50
Stockport MBC,Services to People,Childrens & Educational Services,MCDONALDS,Catering Supplies,Catering Food & Beverages ,28.05.2021,16.06.2021,GPC05210000069,44.65
Stockport MBC,Services to People,Childrens & Educational Services,WM MORRISONS STORE,Furniture and Equipment,Environmental Services Technical Equipment ,27.05.2021,16.06.2021,GPC05210000070,11.00
Stockport MBC,Services to People,Childrens & Educational Services,WM MORRISONS STORE,Catering Supplies,Catering Food & Beverages ,24.05.2021,16.06.2021,GPC05210000071,61.90
Stockport MBC,Services to People,Childrens & Educational Services,WM MORRISONS STORE,Catering Supplies,Catering Food & Beverages ,20.05.2021,16.06.2021,GPC05210000072,20.17
Stockport MBC,Services to People,Childrens & Educational Services,WM MORRISONS STORE,Catering Supplies,Catering Food & Beverages ,20.05.2021,16.06.2021,GPC05210000073,19.73
Stockport MBC,Services to People,Childrens & Educational Services,AMZNMKTPLACE,Furniture and Equipment,Environmental Services Technical Equipment ,19.05.2021,16.06.2021,GPC05210000074,13.98
Stockport MBC,Services to People,Childrens & Educational Services,PAYPAL  PROUD TRUST,Furniture and Equipment,Environmental Services Technical Equipment ,18.05.2021,16.06.2021,GPC05210000075,54.05
Stockport MBC,Services to People,Childrens & Educational Services,THE STABLES,Catering Supplies,Catering Food & Beverages ,18.05.2021,16.06.2021,GPC05210000076,15.40
Stockport MBC,Services to People,Childrens & Educational Services,WM MORRISONS STORE,Catering Supplies,Catering Food & Beverages ,17.05.2021,16.06.2021,GPC05210000077,24.44
Stockport MBC,Services to People,Childrens & Educational Services,B&M 518 - EDGELEY,Furniture and Equipment,Environmental Services Technical Equipment ,13.05.2021,16.06.2021,GPC05210000078,7.88
Stockport MBC,Services to People,Childrens & Educational Services,WM MORRISONS STORE,Catering Supplies,Catering Food & Beverages ,10.05.2021,16.06.2021,GPC05210000079,37.50
Stockport MBC,Services to People,Childrens & Educational Services,WM MORRISONS STORE,Catering Supplies,Catering Food & Beverages ,06.05.2021,16.06.2021,GPC05210000080,8.70
Stockport MBC,Services to People,Childrens & Educational Services,AMZNMKTPLACE AMAZON.CO,Furniture and Equipment,Environmental Services Technical Equipment ,03.05.2021,16.06.2021,GPC05210000081,37.21
Stockport MBC,Services to People,Childrens & Educational Services,WM MORRISONS STORE,Catering Supplies,Catering Food & Beverages ,04.05.2021,16.06.2021,GPC05210000082,22.23
Stockport MBC,Corporate and Support Services,Corporate & Democratic Core,AMAZON.CO.UK 2T2I560I4,Furniture and Equipment,Environmental Services Technical Equipment ,26.05.2021,16.06.2021,GPC05210000083,53.50
Stockport MBC,Corporate and Support Services,Corporate & Democratic Core,SCREWFIX DIRECT,Furniture and Equipment,Environmental Services Technical Equipment ,25.05.2021,16.06.2021,GPC05210000084,42.99
Stockport MBC,Corporate and Support Services,Corporate & Democratic Core,AMZN MKTP UK MK0R99TF4,Furniture and Equipment,Environmental Services Technical Equipment ,03.05.2021,16.06.2021,GPC05210000085,16.99
Stockport MBC,Corporate and Support Services,Corporate & Democratic Core,AMZNMKTPLACE,Furniture and Equipment,Environmental Services Technical Equipment ,30.04.2021,16.06.2021,GPC05210000086,14.99
Stockport MBC,Corporate and Support Services,Central Support Costs,AMZNMKTPLACE AMAZON.CO,Office Expenses,Mail Services�  ,23.05.2021,16.06.2021,GPC05210000087,11.58
Stockport MBC,Corporate and Support Services,Central Support Costs,WWW.GOV.UK,Legal Fees,Legal Services  ,06.05.2021,16.06.2021,GPC05210000088,1.50
Stockport MBC,Corporate and Support Services,Central Support Costs,AMZNMKTPLACE AMAZON.CO,Office Expenses,Stationery    ,05.05.2021,16.06.2021,GPC05210000089,56.92
Stockport MBC,Corporate and Support Services,Central Support Costs,AMZNMKTPLACE,Office Expenses,Stationery    ,04.05.2021,16.06.2021,GPC05210000090,34.14
Stockport MBC,Corporate and Support Services,Central Support Costs,SAICA NATUR UK LTD,Office Expenses,Mail Services�  ,30.04.2021,16.06.2021,GPC05210000091,120.00
Stockport MBC,Services to People,Adult Social Care,ALDI 72 778,Catering Supplies,Catering Food & Beverages ,01.06.2021,16.06.2021,GPC05210000092,144.01
Stockport MBC,Services to People,Adult Social Care,ALDI 84 773,Catering Supplies,Catering Food & Beverages ,01.06.2021,16.06.2021,GPC05210000093,18.45
Stockport MBC,Services to People,Adult Social Care,ALDI 84 773,Catering Supplies,Catering Food & Beverages ,27.05.2021,16.06.2021,GPC05210000094,182.91
Stockport MBC,Services to People,Adult Social Care,APL LOCKSMITHS LTD SHO,Furniture and Equipment,Environmental Services Technical Equipment ,19.05.2021,16.06.2021,GPC05210000095,216.00
Stockport MBC,Services to People,Adult Social Care,ALDI 84 773,Catering Supplies,Catering Food & Beverages ,18.05.2021,16.06.2021,GPC05210000096,18.67
Stockport MBC,Services to People,Adult Social Care,AMZNMKTPLACE AMAZON.CO,Furniture and Equipment,Furniture & Soft Furnishings  ,05.05.2021,16.06.2021,GPC05210000097,29.24
Stockport MBC,Services to People,Adult Social Care,ALDI 84 773,Catering Supplies,Catering Food & Beverages ,04.05.2021,16.06.2021,GPC05210000098,41.11
Stockport MBC,Services to People,Adult Social Care,ASDA GROCERIES ONLINE,Catering Supplies,Catering Food & Beverages ,21.05.2021,16.06.2021,GPC05210000099,67.85
Stockport MBC,Services to People,Adult Social Care,ASDA GROCERIES ONLINE,Catering Supplies,Catering Food & Beverages ,21.05.2021,16.06.2021,GPC05210000100,-0.19
Stockport MBC,Services to People,Adult Social Care,ASDA GROCERIES ONLINE,Catering Supplies,Catering Food & Beverages ,15.05.2021,16.06.2021,GPC05210000101,53.70
Stockport MBC,Services to People,Adult Social Care,ASDA GROCERIES ONLINE,Catering Supplies,Catering Food & Beverages ,15.05.2021,16.06.2021,GPC05210000102,-1.67
Stockport MBC,Services to People,Adult Social Care,ASDA GROCERIES ONLINE,Catering Supplies,Catering Food & Beverages ,08.05.2021,16.06.2021,GPC05210000103,-0.56
Stockport MBC,Services to People,Adult Social Care,ASDA GROCERIES ONLINE,Catering Supplies,Catering Food & Beverages ,08.05.2021,16.06.2021,GPC05210000104,57.90
Stockport MBC,Services to People,Adult Social Care,ASDA GROCERIES ONLINE,Catering Supplies,Catering Food & Beverages ,06.05.2021,16.06.2021,GPC05210000105,-0.30
Stockport MBC,Services to People,Adult Social Care,ASDA GROCERIES ONLINE,Catering Supplies,Catering Food & Beverages ,06.05.2021,16.06.2021,GPC05210000106,42.29
Stockport MBC,Services to People,Childrens & Educational Services,AMZNMKTPLACE,Office Expenses,Stationery    ,21.05.2021,16.06.2021,GPC05210000107,15.96
Stockport MBC,Services to People,Childrens & Educational Services,AMAZON PRIME MK03S5WM4,Office Expenses,Stationery    ,18.05.2021,16.06.2021,GPC05210000108,7.99
Stockport MBC,Services to Place,Childrens & Educational Services,POST OFFICE COUNTER,Publicity and Promotion,Arts & Leisure Services  ,12.05.2021,16.06.2021,GPC05210000109,25.00
Stockport MBC,Services to People,Childrens & Educational Services,MCDONALDS 895,Catering Supplies,Catering Food & Beverages ,26.05.2021,16.06.2021,GPC05210000110,29.49
Stockport MBC,Services to People,Childrens & Educational Services,ARGOS LTD,Clothing Uniforns and Laundry,Clothing  ,25.05.2021,16.06.2021,GPC05210000111,45.00
Stockport MBC,Services to People,Childrens & Educational Services,TESCO STORES 3378,Catering Supplies,Catering Food & Beverages ,11.05.2021,16.06.2021,GPC05210000112,12.64
Stockport MBC,Services to People,Childrens & Educational Services,ALDI 17 773,Furniture and Equipment,Environmental Services Technical Equipment ,10.05.2021,16.06.2021,GPC05210000113,8.99
Stockport MBC,Services to People,Childrens & Educational Services,OFFICE MONSTER,Furniture and Equipment,Environmental Services Technical Equipment ,06.05.2021,16.06.2021,GPC05210000114,37.07
Stockport MBC,Services to People,Childrens & Educational Services,ADHD FOUNDATION,Staff Training,Human Resources  ,05.05.2021,16.06.2021,GPC05210000115,25.00
Stockport MBC,Services to People,Childrens & Educational Services,AMZNMKTPLACE AMAZON.CO,Furniture and Equipment,Environmental Services Technical Equipment ,29.04.2021,16.06.2021,GPC05210000116,20.98
Stockport MBC,Services to People,Childrens & Educational Services,ASDA STORES 4840,Cleaning,Cleaning & Janitorial  ,28.05.2021,16.06.2021,GPC05210000117,1.17
Stockport MBC,Services to People,Childrens & Educational Services,ASDA STORES 4840,Catering Supplies,Catering Food & Beverages ,26.05.2021,16.06.2021,GPC05210000118,2.75
Stockport MBC,Services to People,Childrens & Educational Services,ASDA STORES 4840,Cleaning,Cleaning & Janitorial  ,25.05.2021,16.06.2021,GPC05210000119,5.30
Stockport MBC,Services to People,Childrens & Educational Services,W.L.COLLER,Furniture and Equipment,Furniture & Soft Furnishings  ,19.05.2021,16.06.2021,GPC05210000120,7.20
Stockport MBC,Services to People,Childrens & Educational Services,ASDA STORES 4840,Cleaning,Cleaning & Janitorial  ,11.05.2021,16.06.2021,GPC05210000121,3.78
Stockport MBC,Services to People,Adult Social Care,DUNELM (SOFT FURNISHIN,Fixtures and Fittings,Facilities & Management Services  ,05.05.2021,16.06.2021,GPC05210000122,317.90
Stockport MBC,Services to People,Childrens & Educational Services,W M MORRISON STORE,Furniture and Equipment,Furniture & Soft Furnishings  ,19.05.2021,16.06.2021,GPC05210000123,25.00
Stockport MBC,Services to People,Childrens & Educational Services,B&M 570 - CLARKWAYHYDE,Cleaning,Cleaning & Janitorial  ,07.05.2021,16.06.2021,GPC05210000124,17.29
Stockport MBC,Services to People,Childrens & Educational Services,ARGOS LTD,Furniture and Equipment,Environmental Services Technical Equipment ,27.05.2021,16.06.2021,GPC05210000125,39.95
Stockport MBC,Services to People,Childrens & Educational Services,TRAINLINE,Travelling Expenses,Human Resources Travel & Subsistence ,27.05.2021,16.06.2021,GPC05210000126,17.65
Stockport MBC,Services to People,Childrens & Educational Services,ENTERPRISE RENT A CAR,Furniture and Equipment,Furniture & Soft Furnishings  ,27.05.2021,16.06.2021,GPC05210000127,94.99
Stockport MBC,Services to People,Childrens & Educational Services,ZOOM.US 888-799-9666,Furniture and Equipment,Furniture & Soft Furnishings  ,26.05.2021,16.06.2021,GPC05210000128,14.39
Stockport MBC,Services to People,Childrens & Educational Services,ETR.MYTRIP_UK_L97GPC,Travelling Expenses,Human Resources Travel & Subsistence ,26.05.2021,16.06.2021,GPC05210000129,208.05
Stockport MBC,Services to People,Childrens & Educational Services,ARGOS LTD,Furniture and Equipment,Environmental Services Technical Equipment ,25.05.2021,16.06.2021,GPC05210000130,29.99
Stockport MBC,Services to People,Childrens & Educational Services,HOLIDAY INNS,Care Payments,Social Community Care Supplies & Services  ,25.05.2021,16.06.2021,GPC05210000131,475.00
Stockport MBC,Services to People,Childrens & Educational Services,TRAINLINE,Travelling Expenses,Human Resources Travel & Subsistence ,21.05.2021,16.06.2021,GPC05210000132,16.13
Stockport MBC,Services to People,Childrens & Educational Services,BRUSSELS  0822189164679,Travelling Expenses,Human Resources Travel & Subsistence ,18.05.2021,16.06.2021,GPC05210000133,504.51
Stockport MBC,Services to People,Childrens & Educational Services,BRUSSELS  0822189164680,Travelling Expenses,Human Resources Travel & Subsistence ,18.05.2021,16.06.2021,GPC05210000134,625.60
Stockport MBC,Services to People,Childrens & Educational Services,BRUSSELS  0822189164681,Travelling Expenses,Human Resources Travel & Subsistence ,18.05.2021,16.06.2021,GPC05210000135,48.93
Stockport MBC,Services to People,Childrens & Educational Services,THETRAINLINE.COM,Travelling Expenses,Human Resources Travel & Subsistence ,19.05.2021,16.06.2021,GPC05210000136,16.13
Stockport MBC,Services to People,Childrens & Educational Services,HAMPTON BY HILTON,Expenses and Allowances,Catering  ,18.05.2021,16.06.2021,GPC05210000137,48.60
Stockport MBC,Services to People,Childrens & Educational Services,THETRAINLINE.COM,Travelling Expenses,Human Resources Travel & Subsistence ,14.05.2021,16.06.2021,GPC05210000138,21.16
Stockport MBC,Services to People,Childrens & Educational Services,TRAINLINE,Travelling Expenses,Human Resources Travel & Subsistence ,14.05.2021,16.06.2021,GPC05210000139,52.55
Stockport MBC,Services to People,Childrens & Educational Services,PAYPAL  COMFYLIVING ON,Furniture and Equipment,Environmental Services Technical Equipment ,14.05.2021,16.06.2021,GPC05210000140,189.99
Stockport MBC,Services to People,Childrens & Educational Services,FCO,Travelling Expenses,Human Resources Travel & Subsistence ,13.05.2021,16.06.2021,GPC05210000141,100.00
Stockport MBC,Services to People,Childrens & Educational Services,TRAINLINE,Travelling Expenses,Human Resources Travel & Subsistence ,12.05.2021,16.06.2021,GPC05210000142,21.16
Stockport MBC,Services to People,Childrens & Educational Services,THETRAINLINE.COM,Travelling Expenses,Human Resources Travel & Subsistence ,12.05.2021,16.06.2021,GPC05210000143,109.23
Stockport MBC,Services to People,Childrens & Educational Services,TRAINLINE,Travelling Expenses,Human Resources Travel & Subsistence ,11.05.2021,16.06.2021,GPC05210000144,-6.50
Stockport MBC,Services to People,Childrens & Educational Services,AMZNMKTPLACE,Furniture and Equipment,Environmental Services Technical Equipment ,10.05.2021,16.06.2021,GPC05210000145,319.61
Stockport MBC,Services to People,Childrens & Educational Services,AMZNMKTPLACE,Furniture and Equipment,Environmental Services Technical Equipment ,10.05.2021,16.06.2021,GPC05210000146,23.98
Stockport MBC,Services to People,Childrens & Educational Services,THETRAINLINE.COM,Travelling Expenses,Human Resources Travel & Subsistence ,10.05.2021,16.06.2021,GPC05210000147,-9.90
Stockport MBC,Services to People,Childrens & Educational Services,TRAINLINE,Travelling Expenses,Human Resources Travel & Subsistence ,07.05.2021,16.06.2021,GPC05210000148,21.16
Stockport MBC,Services to People,Childrens & Educational Services,HOLIDAY INNS,Expenses and Allowances,Catering  ,07.05.2021,16.06.2021,GPC05210000149,44.10
Stockport MBC,Services to People,Childrens & Educational Services,TRAINLINE,Travelling Expenses,Human Resources Travel & Subsistence ,05.05.2021,16.06.2021,GPC05210000150,21.16
Stockport MBC,Services to People,Childrens & Educational Services,TRAINLINE,Travelling Expenses,Human Resources Travel & Subsistence ,04.05.2021,16.06.2021,GPC05210000151,-9.90
Stockport MBC,Services to People,Childrens & Educational Services,BRITANNIA HOTEL,Care Payments,Social Community Care Supplies & Services  ,04.05.2021,16.06.2021,GPC05210000152,40.00
Stockport MBC,Services to People,Childrens & Educational Services,TRAINLINE,Travelling Expenses,Human Resources Travel & Subsistence ,04.05.2021,16.06.2021,GPC05210000153,-9.90
Stockport MBC,Services to People,Childrens & Educational Services,TRAINLINE,Travelling Expenses,Human Resources Travel & Subsistence ,03.05.2021,16.06.2021,GPC05210000154,-9.90
Stockport MBC,Services to People,Childrens & Educational Services,BLACKPOOL PLEASURE,Care Payments,Social Community Care Supplies & Services  ,30.04.2021,16.06.2021,GPC05210000155,165.00
Stockport MBC,Services to People,Childrens & Educational Services,ONE4ALL,Expenses and Allowances,Catering  ,01.06.2021,16.06.2021,GPC05210000156,50.00
Stockport MBC,Services to People,Childrens & Educational Services,HOLIDAY INNS,Care Payments,Social Community Care Supplies & Services  ,28.05.2021,16.06.2021,GPC05210000157,572.85
Stockport MBC,Services to People,Childrens & Educational Services,THETRAINLINE.COM,Care Payments,Social Community Care Supplies & Services  ,28.05.2021,16.06.2021,GPC05210000158,158.98
Stockport MBC,Services to People,Childrens & Educational Services,1 AND 1 IONOS LTD,Information and Communications Technology,Information Communication Technology  ,27.05.2021,16.06.2021,GPC05210000159,12.00
Stockport MBC,Services to People,Childrens & Educational Services,STOCKPORT MBC DOM,Care Payments,Social Community Care Supplies & Services  ,27.05.2021,16.06.2021,GPC05210000160,580.92
Stockport MBC,Services to People,Childrens & Educational Services,STOCKPORT MBC DOM,Care Payments,Social Community Care Supplies & Services  ,13.05.2021,16.06.2021,GPC05210000161,257.00
Stockport MBC,Services to People,Childrens & Educational Services,STOCKPORT MBC DOM,Care Payments,Social Community Care Supplies & Services  ,13.05.2021,16.06.2021,GPC05210000162,463.35
Stockport MBC,Services to People,Childrens & Educational Services,ZOOM.US 888-799-9666,Information and Communications Technology,Information Communication Technology  ,11.05.2021,16.06.2021,GPC05210000163,11.99
Stockport MBC,Services to People,Childrens & Educational Services,NRS HEALTHCARE,Staff Training,Human Resources  ,04.05.2021,16.06.2021,GPC05210000164,-145.79
Stockport MBC,Services to People,Childrens & Educational Services,WM MORRISONS STORE,Catering Supplies,Catering Food & Beverages ,26.05.2021,16.06.2021,GPC05210000165,8.50
Stockport MBC,Services to People,Childrens & Educational Services,WM MORRISONS STORE,Catering Supplies,Catering Food & Beverages ,24.05.2021,16.06.2021,GPC05210000166,42.95
Stockport MBC,Services to People,Childrens & Educational Services,W M MORRISON STORE,Catering Supplies,Catering Food & Beverages ,19.05.2021,16.06.2021,GPC05210000167,7.27
Stockport MBC,Services to People,Childrens & Educational Services,B&M 261 - STOCKPORT,Furniture and Equipment,Environmental Services Technical Equipment ,14.05.2021,16.06.2021,GPC05210000168,38.47
Stockport MBC,Services to People,Childrens & Educational Services,TESCO STORES 3378,Catering Supplies,Catering Food & Beverages ,14.05.2021,16.06.2021,GPC05210000169,11.07
Stockport MBC,Services to People,Childrens & Educational Services,WM MORRISONS STORE,Catering Supplies,Catering Food & Beverages ,10.05.2021,16.06.2021,GPC05210000170,23.04
Stockport MBC,Services to People,Childrens & Educational Services,WM MORRISONS STORE,Catering Supplies,Catering Food & Beverages ,04.05.2021,16.06.2021,GPC05210000171,38.80
Stockport MBC,Services to People,Childrens & Educational Services,WM MORRISONS STORE,Catering Supplies,Catering Food & Beverages ,30.04.2021,16.06.2021,GPC05210000172,21.43
Stockport MBC,Services to People,Childrens & Educational Services,NETFLIX.COM,Fees and Charges,Financial Services  ,10.05.2021,16.06.2021,GPC05210000173,13.99
Stockport MBC,Services to People,Childrens & Educational Services,DISNEY PLUS,Fees and Charges,Financial Services  ,03.05.2021,16.06.2021,GPC05210000174,5.99
Stockport MBC,Services to People,Childrens & Educational Services,AMAZON.CO.UK MK5JI16I4,Office Expenses,Stationery    ,11.05.2021,16.06.2021,GPC05210000175,23.64
Stockport MBC,Services to People,Childrens & Educational Services,AMAZON.CO.UK MK33K5XN4,Library Equipment,Education Library Books ,06.05.2021,16.06.2021,GPC05210000176,11.98
Stockport MBC,Services to People,Childrens & Educational Services,AMZNMKTPLACE AMAZON.CO,Furniture and Equipment,Environmental Services Technical Equipment ,28.05.2021,16.06.2021,GPC05210000177,28.48
Stockport MBC,Services to People,Childrens & Educational Services,AMZNMKTPLACE AMAZON.CO,Furniture and Equipment,Environmental Services Technical Equipment ,28.05.2021,16.06.2021,GPC05210000178,41.70
Stockport MBC,Services to People,Childrens & Educational Services,AMZNMKTPLACE AMAZON.CO,Furniture and Equipment,Environmental Services Technical Equipment ,27.05.2021,16.06.2021,GPC05210000179,11.25
Stockport MBC,Services to People,Childrens & Educational Services,ARGOS LTD,Furniture and Equipment,Environmental Services Technical Equipment ,25.05.2021,16.06.2021,GPC05210000180,45.00
Stockport MBC,Services to People,Childrens & Educational Services,ARGOS LTD,Furniture and Equipment,Environmental Services Technical Equipment ,25.05.2021,16.06.2021,GPC05210000181,18.00
Stockport MBC,Services to People,Childrens & Educational Services,TESCO STORES 3378,Clothing Uniforns and Laundry,Clothing  ,24.05.2021,16.06.2021,GPC05210000182,24.00
Stockport MBC,Services to People,Childrens & Educational Services,AMAZON.CO.UK MK0G85Y14,Furniture and Equipment,Environmental Services Technical Equipment ,19.05.2021,16.06.2021,GPC05210000183,15.98
Stockport MBC,Services to People,Childrens & Educational Services,AMZNMKTPLACE,Furniture and Equipment,Environmental Services Technical Equipment ,13.05.2021,16.06.2021,GPC05210000184,23.25
Stockport MBC,Services to People,Childrens & Educational Services,LIFE LEISURE BRINNINGT,Fees and Charges,Education  ,13.05.2021,16.06.2021,GPC05210000185,21.50
Stockport MBC,Services to People,Childrens & Educational Services,AMZNMKTPLACE AMAZON.CO,Furniture and Equipment,Environmental Services Technical Equipment ,11.05.2021,16.06.2021,GPC05210000186,29.17
Stockport MBC,Services to People,Childrens & Educational Services,KAHOOT! AS,Furniture and Equipment,Environmental Services Technical Equipment ,10.05.2021,16.06.2021,GPC05210000187,72.36
Stockport MBC,Services to People,Adult Social Care,SP   RINKIT.COM,COVID,COVID,26.05.2021,16.06.2021,GPC05210000188,39.17
Stockport MBC,Services to People,Public Health,GO OUTDOORS,Office Expenses,Stationery    ,17.05.2021,16.06.2021,GPC05210000189,90.12
Stockport MBC,Services to People,Public Health,GO OUTDOORS,Office Expenses,Stationery    ,17.05.2021,16.06.2021,GPC05210000190,66.50
Stockport MBC,Services to People,Adult Social Care,ALDI 84 773,Catering Supplies,Catering Food & Beverages ,06.05.2021,16.06.2021,GPC05210000191,16.36
Stockport MBC,Services to People,Childrens & Educational Services,RYMAN,Furniture and Equipment,Environmental Services Technical Equipment ,20.05.2021,16.06.2021,GPC05210000192,17.08
Stockport MBC,Services to People,Childrens & Educational Services,ALDI 17 773,Catering Supplies,Catering Food & Beverages ,26.05.2021,16.06.2021,GPC05210000193,4.11
Stockport MBC,Services to People,Childrens & Educational Services,AMZNMKTPLACE,Catering Supplies,Catering Food & Beverages ,24.05.2021,16.06.2021,GPC05210000194,14.50
Stockport MBC,Services to People,Childrens & Educational Services,ASDA STORE 4422,Catering Supplies,Catering Food & Beverages ,19.05.2021,16.06.2021,GPC05210000195,6.93
Stockport MBC,Services to People,Childrens & Educational Services,ALDI 17 773,Catering Supplies,Catering Food & Beverages ,19.05.2021,16.06.2021,GPC05210000196,8.71
Stockport MBC,Services to People,Childrens & Educational Services,ALDI 17 773,Catering Supplies,Catering Food & Beverages ,12.05.2021,16.06.2021,GPC05210000197,10.75
Stockport MBC,Services to People,Childrens & Educational Services,ASDA STORE 4422,Catering Supplies,Catering Food & Beverages ,12.05.2021,16.06.2021,GPC05210000198,1.05
Stockport MBC,Services to People,Childrens & Educational Services,ALDI 17 773,Catering Supplies,Catering Food & Beverages ,05.05.2021,16.06.2021,GPC05210000199,12.34
Stockport MBC,Corporate and Support Services,Central Support Costs,TOGGLER-UK,Furniture and Equipment,Environmental Services Technical Equipment ,10.05.2021,16.06.2021,GPC05210000200,110.59
Stockport MBC,Services to Place,Highways & Transport Services,EB  PANEL TRAINING,Fees and Charges,Human Resources Training & Conferences ,28.05.2021,16.06.2021,GPC05210000201,75.00
Stockport MBC,Services to Place,Highways & Transport Services,EB  THE AUTISM SHOW WE,Staff Training,Human Resources  ,26.05.2021,16.06.2021,GPC05210000202,65.26
Stockport MBC,Services to Place,Highways & Transport Services,MICROSOFT STORE,Furniture and Equipment,Environmental Services Technical Equipment ,11.05.2021,16.06.2021,GPC05210000203,59.99
Stockport MBC,Services to Place,Environmental & Regulatory Services,POINT SAFETY LTD,Furniture and Equipment,Furniture & Soft Furnishings  ,05.05.2021,16.06.2021,GPC05210000204,244.80
Stockport MBC,Corporate and Support Services,Planning Services,ZOOM.US 888-799-9666,Information and Communications Technology,Information Communication Technology  ,10.05.2021,16.06.2021,GPC05210000205,143.88
